[Event "3rd Memorial Warakomska 2019"]
[Site "Suwalki"]
[Date "2019.08.07"]
[Round "4.38"]
[White "Praczukowski, Stanislaw"]
[Black "Czopor, Maciej"]
[Result "0-1"]
[ECO "B83"]
[WhiteElo "2166"]
[BlackElo "2250"]
[Annotator "NA"]
[PlyCount "72"]
[EventDate "2019.08.05"]
[EventType "swiss"]
[EventCountry "POL"]
[SourceTitle "playchess.com"]
[Source "ChessBase"]
[SourceQuality "1"]
[TimeControl "40/5400+30:1800+30"]

1. e4 {[%emt 0:00:00]} c5 {[%emt 0:00:00]} 2. Nf3 {[%emt 0:00:16]} e6 {[%emt 0:00:20]} 3. d4 {[%emt 0:00:00]} cxd4 {[%emt 0:00:11]} 4. Nxd4 {[%emt 0:00:00]} Nf6 {[%emt 0:00:46]} 5. Nc3 {[%emt 0:00:00]} d6 {[%emt 0:00:15]} 6. Be2 {[%emt 0:00:30]} Be7 {[%emt 0:01:27]} 7. O-O {[%emt 0:01:36]} O-O {[%emt 0:00:29]} 8. Be3 {[%emt 0:02:29]} a6 {[%emt 0:02:44]} 9. f4 {[%emt 0:01:09]} Nc6 {[%emt 0:00:45]} 10. Qe1 {[%emt 0:02:01]} Bd7 {[%emt 0:01:19]} 11. Qg3 {[%emt 0:01:22]} b5 {[%emt 0:10:00]} 12. a3 {[%emt 0:04:49]} Nxd4 {[%emt 0:01:33]} 13. Bxd4 {[%emt 0:00:06]} Bc6 {[%emt 0:00:34]} 14. Rae1 {[%emt 0:01:54]} g6 {[%emt 0:05:26]} 15. f5 {[%emt 0:11:32]} e5 {[%emt 0:02:23]} 16. Be3 {[%emt 0:01:00]} Nxe4 {[%emt 0:03:47]} 17. Nxe4 {[%emt 0:01:45]} Bxe4 {[%emt 0:00:24]} 18. Qf2 {[%emt 0:37:23]} Bxf5 {[%emt 0:05:08]} 19. Bh6 {[%emt 0:02:09]} Rc8 {[%emt 0:10:18]} 20. Bxf8 {[%emt 0:00:58]} Bxf8 {[%emt 0:00:19]} 21. Bd3 {[%emt 0:03:12]} Be6 {[%emt 0:01:06]} 22. Qg3 {[%emt 0:02:17]} Bg7 {[%emt 0:01:39]} 23. c3 {[%emt 0:00:49]} f5 {[%emt 0:01:51]} 24. Rd1 {[%emt 0:07:48]} e4 {[%emt 0:01:24]} 25. Bb1 {[%emt 0:02:04]} Be5 {[%emt 0:00:25]} 26. Qf2 {[%emt 0:01:15]} Qc7 {[%emt 0:01:52]} 27. g4 {[%emt 0:07:38]} Kh8 {[%emt 0:05:29]} 28. Qg2 {[%emt 0:03:11]} Rg8 {[%emt 0:01:23]} 29. Rfe1 {[%emt 0:00:43]} a5 {[%emt 0:04:19]} 30. h3 {[%emt 0:02:12]} Bc4 {[%emt 0:04:41]} 31. Kh1 {[%emt 0:00:44]} d5 {[%emt 0:01:49]} 32. Bc2 {[%emt 0:01:30]} a4 {[%emt 0:00:20]} 33. Rg1 {[%emt 0:01:32]} f4 {[%emt 0:01:04]} 34. Rge1 {[%emt 0:00:22]} f3 {[%emt 0:02:54]} 35. Qd2 {[%emt 0:00:14]} Rf8 {[%emt 0:00:46]} 36. Qh6 {[%emt 0:00:45]} Bg7 {[%emt 0:00:48]} 0-1

[Event "3rd Memorial Warakomska 2019"]
[Site "Suwalki"]
[Date "2019.08.07"]
[Round "4.39"]
[White "Klimkowski, Jan"]
[Black "Shpanko, Nadiia"]
[Result "1/2-1/2"]
[ECO "D00"]
[WhiteElo "1985"]
[BlackElo "2132"]
[Annotator "NA"]
[PlyCount "48"]
[EventDate "2019.08.05"]
[EventType "swiss"]
[EventCountry "POL"]
[SourceTitle "playchess.com"]
[Source "ChessBase"]
[SourceQuality "1"]
[TimeControl "40/5400+30:1800+30"]

1. d4 {[%emt 0:00:00]} d5 {[%emt 0:00:00]} 2. g3 {[%emt 0:00:00]} Nf6 {[%emt 0:00:08]} 3. Bg2 {[%emt 0:00:00]} e6 {[%emt 0:00:49]} 4. Nf3 {[%emt 0:00:00]} Be7 {[%emt 0:00:21]} 5. O-O {[%emt 0:00:10]} O-O {[%emt 0:00:08]} 6. c4 {[%emt 0:00:22]} dxc4 {[%emt 0:00:14]} 7. Ne5 {[%emt 0:03:42]} Nc6 {[%emt 0:00:31]} 8. Nxc6 {[%emt 0:01:29]} bxc6 {[%emt 0:00:06]} 9. e3 {[%emt 0:08:16]} Ba6 {[%emt 0:04:48]} 10. Nc3 {[%emt 0:02:54]} Qd7 {[%emt 0:20:30]} 11. e4 {[%emt 0:14:00]} Bb5 {[%emt 0:10:15]} 12. Be3 {[%emt 0:04:09]} Rfd8 {[%emt 0:03:07]} 13. Qe2 {[%emt 0:01:48]} Rab8 {[%emt 0:05:38]} 14. Rfd1 {[%emt 0:02:23]} a5 {[%emt 0:04:15]} 15. Rac1 {[%emt 0:02:17]} Qe8 {[%emt 0:03:02]} 16. Bf4 {[%emt 0:02:31]} Rd7 {[%emt 0:02:21]} 17. Bh3 {[%emt 0:03:27]} Rbd8 {[%emt 0:10:29]} 18. Be5 {[%emt 0:12:40]} Bd6 {[%emt 0:09:17]} 19. f4 {[%emt 0:02:33]} Qe7 {[%emt 0:02:50]} 20. Bxf6 {[%emt 0:06:52]} Qxf6 {[%emt 0:01:39]} 21. e5 {[%emt 0:00:08]} Qh6 {[%emt 0:00:03]} 22. Bg2 {[%emt 0:00:04]} Bb4 {[%emt 0:03:38]} 23. Qe3 {[%emt 0:02:09]} Bxc3 {[%emt 0:01:47]} 24. Qxc3 {[%emt 0:04:45]} a4 {[%emt 0:00:15]} 1/2-1/2

[Event "3rd Memorial Warakomska 2019"]
[Site "Suwalki"]
[Date "2019.08.07"]
[Round "4.40"]
[White "Jaroch, Karol"]
[Black "Wolanski, Michal"]
[Result "1-0"]
[ECO "B34"]
[WhiteElo "2221"]
[BlackElo "2007"]
[Annotator "NA"]
[PlyCount "91"]
[EventDate "2019.08.05"]
[EventType "swiss"]
[EventCountry "POL"]
[SourceTitle "playchess.com"]
[Source "ChessBase"]
[SourceQuality "1"]
[TimeControl "40/5400+30:1800+30"]

1. e4 {[%emt 0:00:00]} c5 {[%emt 0:00:00]} 2. Nf3 {[%emt 0:00:09]} g6 {[%emt 0:00:00]} 3. d4 {[%emt 0:00:17]} cxd4 {[%emt 0:00:00]} 4. Nxd4 {[%emt 0:00:03]} Nc6 {[%emt 0:00:00]} 5. Nc3 {[%emt 0:00:26]} Bg7 {[%emt 0:00:02]} 6. Nb3 {[%emt 0:00:08]} Nf6 {[%emt 0:00:21]} 7. Be2 {[%emt 0:00:12]} O-O {[%emt 0:00:06]} 8. Bg5 {[%emt 0:00:32]} d6 {[%emt 0:01:26]} 9. Qd2 {[%emt 0:00:17]} Be6 {[%emt 0:07:48]} 10. h4 {[%emt 0:04:51]} d5 {[%emt 0:12:23]} 11. Bxf6 {[%emt 0:03:16]} Bxf6 {[%emt 0:01:36]} 12. exd5 {[%emt 0:01:36]} Bxc3 {[%emt 0:00:43]} 13. Qxc3 {[%emt 0:00:05]} Qxd5 {[%emt 0:06:23]} 14. Bf3 {[%emt 0:04:04]} Qc4 {[%emt 0:03:03]} 15. Qxc4 {[%emt 0:00:08]} Bxc4 {[%emt 0:00:07]} 16. Bxc6 {[%emt 0:00:06]} bxc6 {[%emt 0:00:10]} 17. Na5 {[%emt 0:00:09]} Bd5 {[%emt 0:01:02]} 18. f3 {[%emt 0:00:14]} Rfc8 {[%emt 0:03:39]} 19. O-O-O {[%emt 0:01:07]} Rab8 {[%emt 0:04:19]} 20. c4 {[%emt 0:00:29]} Be6 {[%emt 0:00:42]} 21. Rd2 {[%emt 0:03:23]} Kf8 {[%emt 0:02:37]} 22. h5 {[%emt 0:00:09]} g5 {[%emt 0:03:02]} 23. Re1 {[%emt 0:01:01]} Rd8 {[%emt 0:13:40]} 24. b3 {[%emt 0:01:36]} Rxd2 {[%emt 0:00:21]} 25. Kxd2 {[%emt 0:00:03]} Bd7 {[%emt 0:05:25]} 26. Kc3 {[%emt 0:00:06]} f6 {[%emt 0:00:24]} 27. Kd4 {[%emt 0:00:09]} e5+ {[%emt 0:02:23]} 28. Kc5 {[%emt 0:00:11]} Rb6 {[%emt 0:13:16]} 29. Kd6 {[%emt 0:01:55]} Be8 {[%emt 0:00:36]} 30. c5 {[%emt 0:02:55]} Rb8 {[%emt 0:03:34]} 31. Kc7 {[%emt 0:02:07]} Rb5 {[%emt 0:01:38]} 32. Nb7 {[%emt 0:00:08]} Rb4 {[%emt 0:03:13]} 33. Nd8 {[%emt 0:00:31]} Rb5 {[%emt 0:00:55]} 34. Rc1 {[%emt 0:00:16]} Bxh5 {[%emt 0:01:05]} 35. Kxc6 {[%emt 0:01:43]} Rb4 {[%emt 0:00:33]} 36. Kc7 {[%emt 0:01:54]} g4 {[%emt 0:01:13]} 37. Nc6 {[%emt 0:02:39]} Rf4 {[%emt 0:00:22]} 38. fxg4 {[%emt 0:00:31]} Bxg4 {[%emt 0:01:09]} 39. b4 {[%emt 0:00:41]} Rf2 {[%emt 0:00:54]} 40. a4 {[%emt 0:00:00]} e4 {[%emt 0:00:00]} 41. Re1 {[%emt 0:01:24]} Re2 {[%emt 0:02:36]} 42. Rxe2 {[%emt 0:01:20]} Bxe2 {[%emt 0:00:07]} 43. b5 {[%emt 0:00:05]} e3 {[%emt 0:01:07]} 44. b6 {[%emt 0:00:07]} axb6 {[%emt 0:01:04]} 45. cxb6 {[%emt 0:00:05]} Ba6 {[%emt 0:00:16]} 46. Nd4 {[%emt 0:00:07]} 1-0

[Event "3rd Memorial Warakomska 2019"]
[Site "Suwalki"]
[Date "2019.08.07"]
[Round "4.41"]
[White "Bommini Mounika Akshaya"]
[Black "Sharankov, Grigory"]
[Result "0-1"]
[ECO "D00"]
[WhiteElo "2063"]
[BlackElo "2221"]
[Annotator "NA"]
[PlyCount "56"]
[EventDate "2019.08.05"]
[EventType "swiss"]
[EventCountry "POL"]
[SourceTitle "playchess.com"]
[Source "ChessBase"]
[SourceQuality "1"]
[TimeControl "40/5400+30:1800+30"]

1. d4 {[%emt 0:00:00]} d5 {[%emt 0:00:00]} 2. Bf4 {[%emt 0:00:00]} c5 {[%emt 0:00:00]} 3. e3 {[%emt 0:00:00]} Nc6 {[%emt 0:00:00]} 4. c3 {[%emt 0:00:00]} Qb6 {[%emt 0:00:00]} 5. Qb3 {[%emt 0:00:19]} c4 {[%emt 0:00:03]} 6. Qc2 {[%emt 0:00:25]} e5 {[%emt 0:00:41]} 7. dxe5 {[%emt 0:01:18]} Bf5 {[%emt 0:00:27]} 8. Qc1 {[%emt 0:03:44]} g5 {[%emt 0:01:25]} 9. Bg3 {[%emt 0:03:40]} h5 {[%emt 0:00:49]} 10. h3 {[%emt 0:08:39]} Bg7 {[%emt 0:01:43]} 11. Nf3 {[%emt 0:13:32]} g4 {[%emt 0:01:03]} 12. Nd4 {[%emt 0:03:51]} Nge7 {[%emt 0:01:43]} 13. hxg4 {[%emt 0:10:30]} hxg4 {[%emt 0:00:36]} 14. Rxh8+ {[%emt 0:00:22]} Bxh8 {[%emt 0:00:02]} 15. Be2 {[%emt 0:08:53]} Bxe5 {[%emt 0:02:25]} 16. Bxe5 {[%emt 0:05:23]} Nxe5 {[%emt 0:00:03]} 17. Nxf5 {[%emt 0:04:32]} Nxf5 {[%emt 0:00:03]} 18. Nd2 {[%emt 0:09:02]} g3 {[%emt 0:02:26]} 19. Nf1 {[%emt 0:02:27]} gxf2+ {[%emt 0:02:16]} 20. Kxf2 {[%emt 0:00:09]} O-O-O {[%emt 0:02:13]} 21. Qd2 {[%emt 0:02:51]} Qh6 {[%emt 0:09:27]} 22. Rd1 {[%emt 0:04:01]} Qh4+ {[%emt 0:01:21]} 23. Kg1 {[%emt 0:00:41]} Qe4 {[%emt 0:15:16]} 24. Kf2 {[%emt 0:03:58]} Nh4 {[%emt 0:02:04]} 25. Kg1 Nf5 26. Bh5 Rg8 27. Qxd5 Rxg2+ 28. Kh1 Rg8+ {Kg1} 0-1

[Event "3rd Memorial Warakomska 2019"]
[Site "Suwalki"]
[Date "2019.08.07"]
[Round "4.42"]
[White "Bukojemski, Adam"]
[Black "Dmochowska, Agnieszka"]
[Result "1-0"]
[ECO "B32"]
[WhiteElo "2225"]
[BlackElo "2126"]
[Annotator "NA"]
[PlyCount "71"]
[EventDate "2019.08.05"]
[EventType "swiss"]
[EventCountry "POL"]
[SourceTitle "playchess.com"]
[Source "ChessBase"]
[SourceQuality "1"]
[TimeControl "40/5400+30:1800+30"]

1. e4 {[%emt 0:00:31]} c5 {[%emt 0:04:48]} 2. Nf3 {[%emt 0:00:10]} Nc6 {[%emt 0:00:07]} 3. d4 {[%emt 0:00:10]} cxd4 {[%emt 0:00:35]} 4. Nxd4 {[%emt 0:00:05]} e5 {[%emt 0:00:00]} 5. Nb5 {[%emt 0:00:41]} d6 {[%emt 0:00:00]} 6. N1c3 {[%emt 0:02:23]} a6 {[%emt 0:00:02]} 7. Na3 {[%emt 0:00:08]} b5 {[%emt 0:00:04]} 8. Nd5 {[%emt 0:00:08]} Nge7 {[%emt 0:00:06]} 9. c4 {[%emt 0:02:28]} Nd4 {[%emt 0:00:12]} 10. Be3 {[%emt 0:04:17]} Nxd5 {[%emt 0:00:20]} 11. cxd5 {[%emt 0:03:18]} g6 {[%emt 0:00:16]} 12. Bxd4 {[%emt 0:10:56]} exd4 {[%emt 0:00:07]} 13. Qxd4 {[%emt 0:00:17]} f6 {[%emt 0:01:43]} 14. Bd3 {[%emt 0:03:29]} Bg7 {[%emt 0:00:33]} 15. f4 {[%emt 0:20:35]} O-O {[%emt 0:02:49]} 16. f5 {[%emt 0:01:14]} gxf5 {[%emt 0:04:47]} 17. exf5 {[%emt 0:00:01]} Qa5+ {[%emt 0:07:42]} 18. Kd1 {[%emt 0:17:00]} Bh6 {[%emt 0:04:02]} 19. Nb1 {[%emt 0:00:14]} Bb7 {[%emt 0:01:00]} 20. Re1 {[%emt 0:11:01]} Rac8 {[%emt 0:23:06]} 21. Nc3 {[%emt 0:00:47]} b4 {[%emt 0:06:35]} 22. Ne4 {[%emt 0:00:36]} b3 {[%emt 0:16:14]} 23. Nc3 {[%emt 0:04:04]} Rc5 {[%emt 0:00:21]} 24. Ke2 {[%emt 0:06:42]} Qc7 {[%emt 0:08:30]} 25. axb3 {[%emt 0:00:22]} Qg7 {[%emt 0:00:19]} 26. Kf1 {[%emt 0:00:25]} Kh8 {[%emt 0:00:58]} 27. Re2 {[%emt 0:03:52]} a5 {[%emt 0:00:39]} 28. Rae1 {[%emt 0:00:26]} Rg8 {[%emt 0:01:34]} 29. g3 {[%emt 0:00:06]} Qg5 {[%emt 0:02:19]} 30. Re6 {[%emt 0:01:02]} Qh5 {[%emt 0:01:17]} 31. Kg2 {[%emt 0:00:30]} Bc8 {[%emt 0:00:48]} 32. Rxd6 {[%emt 0:02:02]} Rc7 {[%emt 0:00:22]} 33. Qe4 {[%emt 0:02:19]} Bd2 {[%emt 0:00:59]} 34. Re2 {[%emt 0:00:43]} Bxc3 {[%emt 0:01:15]} 35. bxc3 {[%emt 0:00:02]} Rxc3 {[%emt 0:00:12]} 36. Qd4 {[%emt 0:00:21]} 1-0

[Event "3rd Memorial Warakomska 2019"]
[Site "Suwalki"]
[Date "2019.08.07"]
[Round "4.43"]
[White "Balinski, Damian"]
[Black "Oborski, Artur"]
[Result "1-0"]
[ECO "A15"]
[WhiteElo "2176"]
[BlackElo "1969"]
[Annotator "NA"]
[PlyCount "43"]
[EventDate "2019.08.05"]
[EventType "swiss"]
[EventCountry "POL"]
[SourceTitle "playchess.com"]
[Source "ChessBase"]
[SourceQuality "1"]
[TimeControl "40/5400+30:1800+30"]

1. c4 {[%emt 0:00:00]} Nf6 {[%emt 0:00:00]} 2. g3 {[%emt 0:00:00]} d5 {[%emt 0:00:20]} 3. cxd5 {[%emt 0:00:00]} Nxd5 {[%emt 0:00:07]} 4. Bg2 {[%emt 0:00:14]} g6 {[%emt 0:00:05]} 5. Qb3 {[%emt 0:00:10]} Nb6 {[%emt 0:00:33]} 6. Qc3 {[%emt 0:00:33]} f6 {[%emt 0:00:43]} 7. d4 {[%emt 0:07:35]} Bg7 {[%emt 0:00:46]} 8. e4 {[%emt 0:04:17]} O-O {[%emt 0:01:03]} 9. Ne2 {[%emt 0:00:22]} e5 {[%emt 0:03:47]} 10. Be3 {[%emt 0:04:37]} Nc6 {[%emt 0:04:19]} 11. O-O {[%emt 0:07:27]} f5 {[%emt 0:04:03]} 12. dxe5 {[%emt 0:15:13]} Nxe5 {[%emt 0:00:36]} 13. Bd4 {[%emt 0:03:19]} Qe7 {[%emt 0:02:03]} 14. Bc5 {[%emt 0:04:30]} Qf7 {[%emt 0:03:06]} 15. Bxf8 {[%emt 0:02:43]} Kxf8 {[%emt 0:00:37]} 16. f4 {[%emt 0:01:07]} Ng4 {[%emt 0:04:41]} 17. e5 {[%emt 0:01:36]} Nd5 {[%emt 0:00:27]} 18. Qc5+ {[%emt 0:00:52]} Ne7 {[%emt 0:00:08]} 19. h3 {[%emt 0:05:35]} Nh6 {[%emt 0:00:28]} 20. Qxc7 {[%emt 0:00:32]} Be6 {[%emt 0:01:05]} 21. Bxb7 {[%emt 0:00:34]} Re8 {[%emt 0:00:36]} 22. Nbc3 {[%emt 0:00:59]} 1-0

[Event "3rd Memorial Warakomska 2019"]
[Site "Suwalki"]
[Date "2019.08.07"]
[Round "4.44"]
[White "Jankowiak, Tomasz"]
[Black "Korbal, Arkadiusz"]
[Result "1-0"]
[ECO "C80"]
[WhiteElo "2104"]
[BlackElo "2178"]
[Annotator "NA"]
[PlyCount "145"]
[EventDate "2019.08.05"]
[EventType "swiss"]
[EventCountry "POL"]
[SourceTitle "playchess.com"]
[Source "ChessBase"]
[SourceQuality "1"]
[TimeControl "40/5400+30:1800+30"]

1. e4 {[%emt 0:00:00]} e5 {[%emt 0:00:00]} 2. Nf3 {[%emt 0:00:00]} Nc6 {[%emt 0:00:00]} 3. Bb5 {[%emt 0:00:00]} a6 {[%emt 0:00:00]} 4. Ba4 {[%emt 0:00:00]} Nf6 {[%emt 0:00:00]} 5. O-O {[%emt 0:00:00]} Nxe4 {[%emt 0:00:04]} 6. d4 {[%emt 0:00:17]} b5 {[%emt 0:00:28]} 7. Bb3 {[%emt 0:00:06]} d5 {[%emt 0:00:06]} 8. dxe5 {[%emt 0:00:16]} Be6 {[%emt 0:00:08]} 9. Be3 {[%emt 0:00:46]} Be7 {[%emt 0:03:38]} 10. c3 {[%emt 0:02:54]} Na5 {[%emt 0:02:03]} 11. Nd4 {[%emt 0:03:18]} O-O {[%emt 0:02:52]} 12. f3 {[%emt 0:16:11]} Nxb3 {[%emt 0:02:12]} 13. axb3 {[%emt 0:00:46]} Nc5 {[%emt 0:06:05]} 14. b4 {[%emt 0:11:57]} Nb7 {[%emt 0:07:21]} 15. f4 {[%emt 0:00:45]} Bd7 {[%emt 0:00:28]} 16. f5 {[%emt 0:06:41]} Bg5 {[%emt 0:03:32]} 17. Qc1 {[%emt 0:06:45]} Bxe3+ {[%emt 0:02:32]} 18. Qxe3 {[%emt 0:00:05]} Qh4 {[%emt 0:03:21]} 19. Nd2 {[%emt 0:02:59]} Rfe8 {[%emt 0:01:32]} 20. Rae1 {[%emt 0:08:17]} a5 {[%emt 0:07:32]} 21. Rf4 {[%emt 0:04:03]} Qh6 {[%emt 0:01:02]} 22. Qg3 {[%emt 0:01:29]} axb4 {[%emt 0:01:36]} 23. cxb4 {[%emt 0:00:14]} Nd6 {[%emt 0:04:43]} 24. Re2 {[%emt 0:10:32]} Ra1+ {[%emt 0:02:45]} 25. Kf2 {[%emt 0:00:46]} Nc4 {[%emt 0:03:54]} 26. Rh4 {[%emt 0:10:30]} Qb6 {[%emt 0:01:50]} 27. N2b3 {[%emt 0:00:26]} Rd1 {[%emt 0:05:16]} 28. f6 {[%emt 0:00:09]} g6 {[%emt 0:00:29]} 29. Qf4 {[%emt 0:06:05]} Nxe5 {[%emt 0:18:09]} 30. Rxe5 {[%emt 0:01:22]} Rb1 {[%emt 0:01:53]} 31. Rxe8+ {[%emt 0:02:41]} Bxe8 {[%emt 0:00:04]} 32. Qe5 {[%emt 0:00:19]} Rxb2+ {[%emt 0:01:02]} 33. Kg3 {[%emt 0:01:03]} Qb8 {[%emt 0:00:59]} 34. Rf4 {[%emt 0:01:01]} h6 {[%emt 0:00:35]} 35. Rf2 {[%emt 0:00:56]} Rb1 {[%emt 0:00:41]} 36. Rc2 {[%emt 0:01:22]} Bd7 {[%emt 0:01:57]} 37. Qxc7 {[%emt 0:01:46]} Qxc7+ {[%emt 0:00:59]} 38. Rxc7 {[%emt 0:00:06]} Bf5 {[%emt 0:00:03]} 39. Nd2 {[%emt 0:01:34]} Rxb4 {[%emt 0:00:55]} 40. Nxf5 {[%emt 0:00:00]} gxf5 {[%emt 0:00:00]} 41. Nf3 {[%emt 0:01:21]} Re4 {[%emt 0:01:51]} 42. Rc5 {[%emt 0:01:02]} f4+ {[%emt 0:02:36]} 43. Kf2 {[%emt 0:01:56]} Kh7 {[%emt 0:01:29]} 44. Rxb5 {[%emt 0:00:25]} Kg6 {[%emt 0:00:17]} 45. Rxd5 {[%emt 0:00:12]} Ra4 {[%emt 0:00:43]} 46. Nd4 {[%emt 0:01:43]} Kxf6 {[%emt 0:00:34]} 47. Rf5+ {[%emt 0:00:44]} Kg6 {[%emt 0:00:06]} 48. Rxf4 {[%emt 0:00:05]} Ra2+ {[%emt 0:00:05]} 49. Kg3 {[%emt 0:00:25]} Ra3+ {[%emt 0:00:09]} 50. Nf3 {[%emt 0:00:06]} Rb3 {[%emt 0:00:21]} 51. Rc4 {[%emt 0:00:09]} Ra3 {[%emt 0:00:08]} 52. Kf4 {[%emt 0:00:08]} Ra2 {[%emt 0:00:14]} 53. g4 {[%emt 0:00:36]} Kg7 {[%emt 0:01:18]} 54. h4 {[%emt 0:01:24]} Rf2 {[%emt 0:00:21]} 55. h5 {[%emt 0:00:13]} Rf1 {[%emt 0:00:13]} 56. Rc6 {[%emt 0:00:20]} Ra1 {[%emt 0:00:27]} 57. Nd4 {[%emt 0:00:38]} Ra4 {[%emt 0:00:48]} 58. Rd6 {[%emt 0:00:20]} Kh7 {[%emt 0:00:37]} 59. Kg3 {[%emt 0:00:05]} Ra3+ {[%emt 0:00:58]} 60. Kh4 {[%emt 0:00:06]} Ra1 {[%emt 0:00:54]} 61. Nf5 {[%emt 0:00:12]} Rh1+ {[%emt 0:00:35]} 62. Kg3 {[%emt 0:00:05]} Rg1+ {[%emt 0:00:06]} 63. Kf3 {[%emt 0:00:06]} Rf1+ {[%emt 0:00:15]} 64. Kg2 {[%emt 0:00:05]} Rf4 {[%emt 0:00:27]} 65. Kg3 {[%emt 0:00:18]} Ra4 {[%emt 0:00:07]} 66. Rxh6+ {[%emt 0:00:05]} Kg8 {[%emt 0:00:04]} 67. Rb6 {[%emt 0:00:11]} Rc4 {[%emt 0:00:09]} 68. Kh4 {[%emt 0:00:14]} Kh7 {[%emt 0:00:11]} 69. Kg5 {[%emt 0:00:27]} Ra4 {[%emt 0:00:13]} 70. Rb7 {[%emt 0:00:12]} Kg8 {[%emt 0:00:10]} 71. Nh6+ {[%emt 0:00:14]} Kg7 {[%emt 0:00:29]} 72. Rxf7+ {[%emt 0:00:07]} Kh8 {[%emt 0:00:07]} 73. Nf5 {[%emt 0:00:23]} 1-0

[Event "3rd Memorial Warakomska 2019"]
[Site "Suwalki"]
[Date "2019.08.07"]
[Round "4.45"]
[White "Czarniecka, Aleksandra"]
[Black "Leskiewicz, Ignacy"]
[Result "1/2-1/2"]
[ECO "B92"]
[WhiteElo "2042"]
[BlackElo "2120"]
[Annotator "ChessBase"]
[PlyCount "114"]
[EventDate "2019.08.05"]
[EventType "swiss"]
[EventCountry "POL"]
[SourceTitle "playchess.com"]
[Source "ChessBase"]
[SourceQuality "1"]
[TimeControl "40/5400+30:1800+30"]

1. e4 {[%emt 0:00:00]} c5 {[%emt 0:00:34]} 2. Nf3 {[%emt 0:00:00]} d6 {[%emt 0:00:47]} 3. d4 {[%emt 0:00:03]} cxd4 {[%emt 0:00:15]} 4. Nxd4 {[%emt 0:00:05]} Nf6 {[%emt 0:00:04]} 5. Nc3 {[%emt 0:00:09]} a6 {[%emt 0:01:08]} 6. Be2 {[%emt 0:00:29]} e5 {[%emt 0:02:04]} 7. Nb3 {[%emt 0:02:03]} Be7 {[%emt 0:00:36]} 8. Bg5 {[%emt 0:03:02]} Be6 {[%emt 0:02:49]} 9. Bxf6 {[%emt 0:04:00]} Bxf6 {[%emt 0:01:34]} 10. Qd3 {[%emt 0:00:46]} Nc6 {[%emt 0:08:29]} 11. O-O-O {[%emt 0:22:49]} Be7 {[%emt 0:03:59]} 12. Kb1 {[%emt 0:03:18]} O-O {[%emt 0:24:45]} 13. Nd5 {[%emt 0:03:44]} Bxd5 {[%emt 0:08:31]} 14. Qxd5 {[%emt 0:04:46]} Qc7 {[%emt 0:07:31]} 15. c3 {[%emt 0:04:46]} Rfd8 {[%emt 0:05:19]} 16. Nd2 {[%emt 0:07:11]} b5 {[%emt 0:01:48]} 17. Nf1 {[%emt 0:03:23]} Bg5 {[%emt 0:07:26]} 18. Ng3 {[%emt 0:06:39]} Ne7 {[%emt 0:02:05]} 19. Qb3 {[%emt 0:00:51]} Qc5 {[%emt 0:01:29]} 20. Bf3 {[%emt 0:06:36]} Rab8 {[%emt 0:00:55]} 21. Rd3 {[%emt 0:03:44]} b4 {[%emt 0:01:23]} 22. Rhd1 {[%emt 0:04:12]} Nc6 {[%emt 0:10:49]} 23. Ne2 {[%emt 0:07:55]} Qxf2 {[%emt 0:03:37]} 24. c4 {[%emt 0:06:24]} g6 {[%emt 0:02:25]} 25. Rxd6 {[%emt 0:02:11]} Nd4 {[%emt 0:00:01]} 26. Rxd8+ {[%emt 0:00:12]} Rxd8 {[%emt 0:00:01]} 27. Nxd4 {[%emt 0:00:35]} exd4 {[%emt 0:01:18]} 28. Qd3 {[%emt 0:01:07]} Bf4 {[%emt 0:00:59]} 29. Rf1 {[%emt 0:01:27]} Qe3 {[%emt 0:00:28]} 30. Qxe3 {[%emt 0:01:00]} dxe3 {[%emt 0:00:25]} 31. g3 {[%emt 0:00:20]} Be5 {[%emt 0:00:34]} 32. Rd1 {[%emt 0:00:13]} Rc8 {[%emt 0:00:50]} 33. b3 {[%emt 0:00:16]} Bb8 {[%emt 0:00:53]} 34. Kc2 {[%emt 0:00:41]} Kg7 {[%emt 0:00:14]} 35. Rd7 {[%emt 0:01:13]} h5 {[%emt 0:00:42]} 36. Kd3 {[%emt 0:00:24]} h4 {[%emt 0:00:24]} 37. gxh4 {[%emt 0:00:46]} Bxh2 {[%emt 0:00:18]} 38. Kxe3 {[%emt 0:00:11]} Rh8 {[%emt 0:00:22]} 39. Rb7 {[%emt 0:01:22]} a5 {[%emt 0:00:56]} 40. Rb5 {[%emt 0:00:00]} Bc7 {[%emt 0:00:00]} 41. h5 {[%emt 0:01:19]} Rd8 {[%emt 0:08:43]} 42. hxg6 {[%emt 0:03:52]} fxg6 {[%emt 0:02:00]} 43. Rd5 {[%emt 0:07:11]} Bb6+ {[%emt 0:02:37]} 44. Kf4 {[%emt 0:02:02]} Rf8+ {[%emt 0:06:51]} 45. Kg4 {[%emt 0:02:04]} Bc7 {[%emt 0:02:45]} 46. e5 {[%emt 0:11:59]} Rf5 {[%emt 0:00:19]} 47. Rd7+ {[%emt 0:01:08]} Rf7 {[%emt 0:00:02]} 48. e6 {[%emt 0:00:38]} Rxd7 {[%emt 0:00:01]} 49. exd7 {[%emt 0:00:07]} Kf6 {[%emt 0:00:52]} 50. c5 {[%emt 0:00:40]} Bd8 {[%emt 0:00:53]} 51. Kf4 {[%emt 0:00:46]} Ke6 {[%emt 0:00:14]} 52. c6 {[%emt 0:00:13]} Kd6 {[%emt 0:00:23]} 53. Ke3 {[%emt 0:03:27]} Kc5 {[%emt 0:00:18]} 54. Kd3 {[%emt 0:00:15]} Bc7 {[%emt 0:00:18]} 55. Ke3 {[%emt 0:01:10]} Bd8 {[%emt 0:01:21]} 56. Kf4 {[%emt 0:00:11]} Kd6 {[%emt 0:00:26]} 57. Be4 {[%emt 0:00:08]} Bf6 {[%emt 0:00:21]} 1/2-1/2

[Event "3rd Memorial Warakomska 2019"]
[Site "Suwalki"]
[Date "2019.08.07"]
[Round "4.46"]
[White "Checiak, Krzysztof"]
[Black "Szczurek, Krzysztof"]
[Result "0-1"]
[ECO "B92"]
[WhiteElo "2057"]
[BlackElo "2104"]
[Annotator "NA"]
[PlyCount "58"]
[EventDate "2019.08.05"]
[EventType "swiss"]
[EventCountry "POL"]
[SourceTitle "playchess.com"]
[Source "ChessBase"]
[SourceQuality "1"]
[TimeControl "40/5400+30:1800+30"]

1. e4 {[%emt 0:02:25]} c5 {[%emt 0:00:00]} 2. Nf3 {[%emt 0:00:11]} d6 {[%emt 0:00:00]} 3. d4 {[%emt 0:00:06]} cxd4 {[%emt 0:00:00]} 4. Nxd4 {[%emt 0:00:08]} Nf6 {[%emt 0:00:13]} 5. Nc3 {[%emt 0:00:05]} a6 {[%emt 0:00:07]} 6. Be2 {[%emt 0:01:26]} e5 {[%emt 0:00:10]} 7. Nb3 {[%emt 0:00:25]} Be7 {[%emt 0:00:16]} 8. O-O {[%emt 0:00:21]} O-O {[%emt 0:00:29]} 9. a4 {[%emt 0:00:15]} Be6 {[%emt 0:00:19]} 10. f4 {[%emt 0:00:29]} exf4 {[%emt 0:00:14]} 11. Bxf4 {[%emt 0:00:16]} Nc6 {[%emt 0:01:01]} 12. Kh1 {[%emt 0:00:41]} Qb6 {[%emt 0:01:02]} 13. Nd5 {[%emt 0:00:54]} Bxd5 {[%emt 0:00:14]} 14. exd5 {[%emt 0:00:20]} Ne5 {[%emt 0:05:38]} 15. a5 {[%emt 0:00:33]} Qc7 {[%emt 0:01:01]} 16. Ra4 {[%emt 0:03:04]} Ng6 {[%emt 0:00:51]} 17. Be3 {[%emt 0:00:39]} Rac8 {[%emt 0:01:58]} 18. c3 {[%emt 0:00:17]} Qd7 {[%emt 0:01:01]} 19. Rb4 {[%emt 0:00:18]} Rfe8 {[%emt 0:01:50]} 20. c4 {[%emt 0:10:20]} Ne5 {[%emt 0:02:39]} 21. Qd4 {[%emt 0:02:39]} Rb8 {[%emt 0:07:07]} 22. Bf4 {[%emt 0:00:59]} Ng6 {[%emt 0:00:12]} 23. Bg3 {[%emt 0:00:58]} Bf8 {[%emt 0:01:15]} 24. Bd3 {[%emt 0:01:54]} Nh5 {[%emt 0:01:14]} 25. Be1 {[%emt 0:02:51]} Ngf4 {[%emt 0:06:51]} 26. Bc3 {[%emt 0:00:53]} Qg4 {[%emt 0:06:03]} 27. Be4 {[%emt 0:03:17]} Ng3+ {[%emt 0:01:09]} 28. hxg3 {[%emt 0:01:58]} Qh5+ {[%emt 0:00:05]} 29. Kg1 {[%emt 0:01:14]} Ne2+ {[%emt 0:00:05]} 0-1